[Event "*** Titled Tuesday Blitz"]
[Site "Chess.com"]
[Date "2018.12.04"]
[Round "3"]
[White "nitpicker"]
[Black "armago"]
[Result "0-1"]
[WhiteElo "2180"]
[BlackElo "2027"]
[TimeControl "180+2"]
[EndTime "13:37:36 PST"]
[Termination "armago won by checkmate"]

1. d4 {[%clk 0:03:01.9]} 1... Nf6 {[%clk 0:02:59.8]} 2. c4 {[%clk 0:03:02.6]}
2... g6 {[%clk 0:03:00.6]} 3. Nc3 {[%clk 0:03:02.4]} 3... d5 {[%clk 0:03:01]} 4.
Nf3 {[%clk 0:03:02.6]} 4... Bg7 {[%clk 0:02:56.9]} 5. Qb3 {[%clk 0:03:03.2]}
5... dxc4 {[%clk 0:02:56.4]} 6. Qxc4 {[%clk 0:03:05.1]} 6... O-O {[%clk
0:02:54.5]} 7. e4 {[%clk 0:03:06]} 7... a6 {[%clk 0:02:54.9]} 8. Be2 {[%clk
0:03:00.5]} 8... b5 {[%clk 0:02:54.7]} 9. Qb3 {[%clk 0:03:01.9]} 9... c5 {[%clk
0:02:54.8]} 10. dxc5 {[%clk 0:03:03]} 10... Bb7 {[%clk 0:02:55.2]} 11. a4 {[%clk
0:03:01.6]} 11... Nbd7 {[%clk 0:02:40.5]} 12. Qb4 {[%clk 0:02:44.2]} 12... Qc7
{[%clk 0:02:26]} 13. O-O {[%clk 0:02:24.5]} 13... Qxc5 {[%clk 0:02:19]} 14. Qxc5
{[%clk 0:02:19]} 14... Nxc5 {[%clk 0:02:20.9]} 15. e5 {[%clk 0:02:02]} 15... Ng4
{[%clk 0:02:13.7]} 16. Bf4 {[%clk 0:01:50.6]} 16... b4 {[%clk 0:02:11.5]} 17.
Na2 {[%clk 0:01:51.4]} 17... a5 {[%clk 0:02:01]} 18. h3 {[%clk 0:01:47.1]} 18...
Nh6 {[%clk 0:02:01]} 19. Bb5 {[%clk 0:01:39.3]} 19... Bxf3 {[%clk 0:01:54.8]}
20. gxf3 {[%clk 0:01:38.6]} 20... Nf5 {[%clk 0:01:56.2]} 21. Rac1 {[%clk
0:01:30.7]} 21... Ne6 {[%clk 0:01:55.4]} 22. Bh2 {[%clk 0:01:26.1]} 22... Ned4
{[%clk 0:01:49]} 23. Bc6 {[%clk 0:01:17.1]} 23... Ne2+ {[%clk 0:01:46.1]} 24.
Kg2 {[%clk 0:01:18.1]} 24... Nxc1 {[%clk 0:01:46.7]} 25. Nxc1 {[%clk 0:01:18.2]}
25... Rac8 {[%clk 0:01:46.2]} 26. Be4 {[%clk 0:01:14.6]} 26... e6 {[%clk
0:01:41.8]} 27. Nb3 {[%clk 0:01:15.1]} 27... Nh4+ {[%clk 0:01:33.7]} 28. Kg3
{[%clk 0:01:11.6]} 28... g5 {[%clk 0:01:33.2]} 29. Kg4 {[%clk 0:01:06.6]} 29...
h6 {[%clk 0:01:30.4]} 30. f4 {[%clk 0:01:01.8]} 30... Rc4 {[%clk 0:01:29.6]} 31.
Bd3 {[%clk 0:01:01.5]} 31... Rc7 {[%clk 0:01:25.1]} 32. fxg5 {[%clk 0:01:01.2]}
32... hxg5 {[%clk 0:01:23.9]} 33. f4 {[%clk 0:00:54.5]} 33... Rd8 {[%clk
0:01:17]} 34. Bb5 {[%clk 0:00:40.5]} 34... Nf5 {[%clk 0:01:17]} 35. Rg1 {[%clk
0:00:30.9]} 35... gxf4 {[%clk 0:01:15.7]} 36. Bxf4 {[%clk 0:00:31]} 36... Kf8
{[%clk 0:01:07.8]} 37. Nxa5 {[%clk 0:00:24.2]} 37... Rc2 {[%clk 0:00:55.6]} 38.
Nc6 {[%clk 0:00:21.5]} 38... Rc8 {[%clk 0:00:53.1]} 39. Nxb4 {[%clk 0:00:20]}
39... Rxb2 {[%clk 0:00:50.8]} 40. Nc6 {[%clk 0:00:21.1]} 40... Ra8 {[%clk
0:00:49.4]} 41. Bc1 {[%clk 0:00:20.9]} 41... Rc2 {[%clk 0:00:44.2]} 42. Ba3+
{[%clk 0:00:21.2]} 42... Kg8 {[%clk 0:00:44.6]} 43. Rd1 {[%clk 0:00:18.7]} 43...
Kh7 {[%clk 0:00:43.4]} 44. a5 {[%clk 0:00:19.6]} 44... Rg8 {[%clk 0:00:43.1]}
45. a6 {[%clk 0:00:16.7]} 45... Rf2 {[%clk 0:00:41.8]} 46. h4 {[%clk 0:00:15.9]}
46... Bh6+ {[%clk 0:00:40.7]} 47. Kh5 {[%clk 0:00:10.5]} 47... Ng3# {[%clk
0:00:39.5]} 0-1

[Event "*** Titled Tuesday Blitz"]
[Site "Chess.com"]
[Date "2018.12.04"]
[Round "3"]
[White "Slovak_fighter2000"]
[Black "PlotnikovPavel"]
[Result "0-1"]
[WhiteElo "2451"]
[BlackElo "2351"]
[TimeControl "180+2"]
[EndTime "13:37:36 PST"]
[Termination "PlotnikovPavel won by resignation"]

1. e4 {[%clk 0:03:01.9]} 1... e6 {[%clk 0:03:01.3]} 2. d4 {[%clk 0:02:59.3]}
2... d5 {[%clk 0:03:02.7]} 3. Bd3 {[%clk 0:03:00.9]} 3... dxe4 {[%clk
0:03:02.1]} 4. Bxe4 {[%clk 0:03:02.8]} 4... Nf6 {[%clk 0:03:02.4]} 5. Bf3 {[%clk
0:03:04.3]} 5... c5 {[%clk 0:03:03.9]} 6. Ne2 {[%clk 0:03:05.8]} 6... Nc6 {[%clk
0:03:04.5]} 7. Be3 {[%clk 0:03:06.9]} 7... cxd4 {[%clk 0:03:02.8]} 8. Nxd4
{[%clk 0:03:08.3]} 8... Nxd4 {[%clk 0:03:01]} 9. Qxd4 {[%clk 0:03:08.8]} 9...
Qxd4 {[%clk 0:03:01.3]} 10. Bxd4 {[%clk 0:03:10.7]} 10... Bd6 {[%clk 0:02:52.4]}
11. Nc3 {[%clk 0:03:06.9]} 11... a6 {[%clk 0:02:52.5]} 12. O-O-O {[%clk
0:03:06.8]} 12... Ke7 {[%clk 0:02:52.8]} 13. Rhe1 {[%clk 0:03:02.7]} 13... Rd8
{[%clk 0:02:52.2]} 14. Rd2 {[%clk 0:02:38.4]} 14... Bf4 {[%clk 0:02:45.2]} 15.
Be3 {[%clk 0:02:39]} 15... Rxd2 {[%clk 0:02:44.4]} 16. Bxd2 {[%clk 0:02:35.7]}
16... Bxd2+ {[%clk 0:02:44.9]} 17. Kxd2 {[%clk 0:02:37.6]} 17... Rb8 {[%clk
0:02:37.4]} 18. a4 {[%clk 0:02:28.8]} 18... Bd7 {[%clk 0:02:34.3]} 19. b3 {[%clk
0:02:27]} 19... Ne8 {[%clk 0:02:29.7]} 20. Re3 {[%clk 0:02:23.7]} 20... Nd6
{[%clk 0:02:30.3]} 21. Ne4 {[%clk 0:02:20.2]} 21... Nf5 {[%clk 0:02:26.8]} 22.
Rc3 {[%clk 0:02:20]} 22... Bc6 {[%clk 0:02:27.3]} 23. Ng3 {[%clk 0:02:16]} 23...
Bxf3 {[%clk 0:02:26]} 24. Rxf3 {[%clk 0:02:16.4]} 24... Nd4 {[%clk 0:02:23.5]}
25. Rd3 {[%clk 0:02:16.4]} 25... Rd8 {[%clk 0:02:23.7]} 26. Kc3 {[%clk
0:02:09.9]} 26... e5 {[%clk 0:02:19.5]} 27. Kb2 {[%clk 0:02:01.4]} 27... g6
{[%clk 0:02:15.1]} 28. Ne4 {[%clk 0:01:56.5]} 28... Ne6 {[%clk 0:02:03.6]} 29.
Rxd8 {[%clk 0:01:56.2]} 29... Nxd8 {[%clk 0:02:02]} 30. Kc3 {[%clk 0:01:56]}
30... f5 {[%clk 0:01:59]} 31. Nc5 {[%clk 0:01:56.9]} 31... Kd6 {[%clk
0:01:59.2]} 32. b4 {[%clk 0:01:56.8]} 32... a5 {[%clk 0:01:56.6]} 33. Nb3 {[%clk
0:01:48.4]} 33... axb4+ {[%clk 0:01:56.4]} 34. Kxb4 {[%clk 0:01:50.3]} 34... Kc6
{[%clk 0:01:45.8]} 35. Na5+ {[%clk 0:01:50.9]} 35... Kc7 {[%clk 0:01:43.3]} 36.
Nc4 {[%clk 0:01:51.2]} 36... e4 {[%clk 0:01:41.1]} 37. Kc5 {[%clk 0:01:49.9]}
37... Ne6+ {[%clk 0:01:41.5]} 38. Kb4 {[%clk 0:01:49.8]} 38... Nd4 {[%clk
0:01:38.6]} 39. Kc3 {[%clk 0:01:46.7]} 39... Ne2+ {[%clk 0:01:38.1]} 40. Kd2
{[%clk 0:01:47.4]} 40... Nf4 {[%clk 0:01:37.9]} 41. g3 {[%clk 0:01:47.9]} 41...
Nd5 {[%clk 0:01:38.9]} 42. Na3 {[%clk 0:01:37.5]} 42... Kc6 {[%clk 0:01:34.5]}
43. Nb5 {[%clk 0:01:37.7]} 43... Kc5 {[%clk 0:01:31.9]} 44. c3 {[%clk
0:01:36.3]} 44... Nb6 {[%clk 0:01:30.7]} 45. Nd4 {[%clk 0:01:30.5]} 45... Nxa4
{[%clk 0:01:22.7]} 46. Nb3+ {[%clk 0:01:28]} 46... Kd6 {[%clk 0:01:18.7]} 47.
Na5 {[%clk 0:01:26.4]} 47... Nc5 {[%clk 0:01:16.7]} 48. Ke3 {[%clk 0:01:25.5]}
48... b5 {[%clk 0:01:12.5]} 49. Kd4 {[%clk 0:01:21.6]} 49... Ne6+ {[%clk
0:01:13.8]} 50. Ke3 {[%clk 0:01:22.6]} 50... Kd5 {[%clk 0:01:14.1]} 51. Kd2
{[%clk 0:01:21]} 51... Ng5 {[%clk 0:01:12.1]} 52. h4 {[%clk 0:01:21]} 52... Nf3+
{[%clk 0:01:13.3]} 53. Ke3 {[%clk 0:01:21.8]} 53... Ne5 {[%clk 0:01:14.7]} 54.
Ke2 {[%clk 0:01:19.2]} 54... Nc4 {[%clk 0:01:11.9]} 55. Nb3 {[%clk 0:01:19.1]}
55... Nb2 {[%clk 0:01:05.9]} 56. Nd4 {[%clk 0:01:18.8]} 56... b4 {[%clk
0:01:04.2]} 57. Kd2 {[%clk 0:00:57.4]} 57... bxc3+ {[%clk 0:01:04.4]} 58. Kxc3
{[%clk 0:00:58.7]} 58... Na4+ {[%clk 0:01:03.2]} 0-1

[Event "*** Titled Tuesday Blitz"]
[Site "Chess.com"]
[Date "2018.12.04"]
[Round "3"]
[White "rasmussvane"]
[Black "Hrant_ChessMood"]
[Result "0-1"]
[WhiteElo "2677"]
[BlackElo "2946"]
[TimeControl "180+2"]
[EndTime "13:37:39 PST"]
[Termination "Hrant_ChessMood won by resignation"]

1. Nf3 {[%clk 0:03:01.9]} 1... d5 {[%clk 0:02:58]} 2. d4 {[%clk 0:03:02.7]} 2...
Nf6 {[%clk 0:02:57.4]} 3. c4 {[%clk 0:03:04.3]} 3... e6 {[%clk 0:02:52.3]} 4. g3
{[%clk 0:03:05.4]} 4... dxc4 {[%clk 0:02:37.5]} 5. Bg2 {[%clk 0:03:06.5]} 5...
Bb4+ {[%clk 0:02:38.8]} 6. Bd2 {[%clk 0:03:06.9]} 6... a5 {[%clk 0:02:38.5]} 7.
Qc2 {[%clk 0:03:07]} 7... c5 {[%clk 0:02:39.5]} 8. dxc5 {[%clk 0:03:05.9]} 8...
Bxc5 {[%clk 0:02:41.4]} 9. O-O {[%clk 0:02:59.4]} 9... Nbd7 {[%clk 0:02:41.1]}
10. Rd1 {[%clk 0:02:40.5]} 10... Qc7 {[%clk 0:02:30.5]} 11. Bf4 {[%clk
0:02:25.5]} 11... e5 {[%clk 0:02:26.5]} 12. Bg5 {[%clk 0:02:26.7]} 12... O-O
{[%clk 0:02:08.5]} 13. Nbd2 {[%clk 0:01:55.5]} 13... b5 {[%clk 0:01:53.4]} 14.
a4 {[%clk 0:01:41]} 14... Ba6 {[%clk 0:01:50.2]} 15. axb5 {[%clk 0:01:41.8]}
15... Bxb5 {[%clk 0:01:51.1]} 16. e3 {[%clk 0:01:34.1]} 16... Rac8 {[%clk
0:01:45.4]} 17. Rdc1 {[%clk 0:01:30.4]} 17... Bb4 {[%clk 0:01:43.8]} 18. Bf1
{[%clk 0:01:29.6]} 18... Nd5 {[%clk 0:01:30.1]} 19. e4 {[%clk 0:01:25.3]} 19...
N5b6 {[%clk 0:01:28.9]} 20. Be3 {[%clk 0:01:26.3]} 20... Qb7 {[%clk 0:01:14.8]}
21. Qd1 {[%clk 0:01:14.3]} 21... Rfd8 {[%clk 0:01:12]} 22. Qc2 {[%clk
0:01:04.6]} 22... Nc5 {[%clk 0:01:08.5]} 23. Nxc4 {[%clk 0:00:56.6]} 23... Nxc4
{[%clk 0:01:03.3]} 24. Bxc4 {[%clk 0:00:57.2]} 24... Nxe4 {[%clk 0:01:00.1]} 25.
Bxf7+ {[%clk 0:00:52]} 25... Kf8 {[%clk 0:00:34.1]} 26. Qb1 {[%clk 0:00:06.9]}
26... Rxc1+ {[%clk 0:00:33.8]} 27. Qxc1 {[%clk 0:00:08.4]} 27... Qxf7 {[%clk
0:00:33.4]} 28. Nxe5 {[%clk 0:00:09.2]} 28... Qd5 {[%clk 0:00:32.3]} 29. Qc7
{[%clk 0:00:10.2]} 29... Nf6 {[%clk 0:00:24.8]} 30. h3 {[%clk 0:00:08.3]} 30...
Be8 {[%clk 0:00:23.6]} 31. Rc1 {[%clk 0:00:06.6]} 31... Rd6 {[%clk 0:00:18.3]}
32. Bf4 {[%clk 0:00:07]} 32... Re6 {[%clk 0:00:18]} 33. Qb8 {[%clk 0:00:07.9]}
33... Bd6 {[%clk 0:00:18.1]} 34. Qc8 {[%clk 0:00:03]} 34... Bxe5 {[%clk
0:00:19]} 35. Be3 {[%clk 0:00:04.1]} 35... Bxb2 {[%clk 0:00:18.6]} 36. Rc5
{[%clk 0:00:04.7]} 36... Qd1+ {[%clk 0:00:18.7]} 37. Kh2 {[%clk 0:00:06.2]}
37... Qd7 {[%clk 0:00:20.2]} 38. Qb8 {[%clk 0:00:07.1]} 38... Ba3 {[%clk
0:00:15.5]} 39. Rc7 {[%clk 0:00:08.2]} 39... Bd6 {[%clk 0:00:16.4]} 40. Bc5
{[%clk 0:00:07.1]} 40... Bxc5 {[%clk 0:00:13.9]} 41. Rxd7 {[%clk 0:00:08.1]}
41... Nxd7 {[%clk 0:00:15.8]} 42. Qf4+ {[%clk 0:00:07.4]} 42... Rf6 {[%clk
0:00:16.8]} 0-1

[Event "*** Titled Tuesday Blitz"]
[Site "Chess.com"]
[Date "2018.12.04"]
[Round "3"]
[White "johnathan113"]
[Black "schoolmeester"]
[Result "1/2-1/2"]
[WhiteElo "2539"]
[BlackElo "2745"]
[TimeControl "180+2"]
[EndTime "13:37:43 PST"]
[Termination "Game drawn by repetition"]

1. e4 {[%clk 0:03:01.8]} 1... Nc6 {[%clk 0:02:58.1]} 2. Nf3 {[%clk 0:03:02.1]}
2... d6 {[%clk 0:02:57.5]} 3. d4 {[%clk 0:03:01.3]} 3... Nf6 {[%clk 0:02:58]} 4.
Nc3 {[%clk 0:03:02.8]} 4... g6 {[%clk 0:02:58.5]} 5. d5 {[%clk 0:03:03.4]} 5...
Nb8 {[%clk 0:02:58.5]} 6. h3 {[%clk 0:03:03.9]} 6... Bg7 {[%clk 0:02:57.8]} 7.
Bc4 {[%clk 0:03:05.5]} 7... O-O {[%clk 0:02:57]} 8. O-O {[%clk 0:03:07.3]} 8...
c6 {[%clk 0:02:53.1]} 9. a4 {[%clk 0:03:08.7]} 9... Nbd7 {[%clk 0:02:48.7]} 10.
Re1 {[%clk 0:03:07.6]} 10... cxd5 {[%clk 0:02:37.8]} 11. exd5 {[%clk 0:03:08.4]}
11... Nc5 {[%clk 0:02:38.5]} 12. Bg5 {[%clk 0:03:06.9]} 12... h6 {[%clk
0:02:26.6]} 13. Be3 {[%clk 0:03:00.5]} 13... Bd7 {[%clk 0:02:19.5]} 14. a5
{[%clk 0:02:56.4]} 14... Rc8 {[%clk 0:02:17.1]} 15. Qe2 {[%clk 0:02:57.7]} 15...
Qc7 {[%clk 0:02:00.6]} 16. Bd4 {[%clk 0:02:56]} 16... Rfe8 {[%clk 0:01:56.5]}
17. b3 {[%clk 0:02:47.9]} 17... a6 {[%clk 0:01:44.6]} 18. Nd2 {[%clk 0:02:24.3]}
18... e5 {[%clk 0:01:28.2]} 19. dxe6 {[%clk 0:02:24.9]} 19... Bxe6 {[%clk
0:01:28.2]} 20. Qf3 {[%clk 0:02:20.2]} 20... Ncd7 {[%clk 0:01:03.7]} 21. Bxe6
{[%clk 0:02:05.5]} 21... Rxe6 {[%clk 0:01:03.2]} 22. Rxe6 {[%clk 0:02:06.2]}
22... fxe6 {[%clk 0:01:03.7]} 23. Qg3 {[%clk 0:01:46.9]} 23... e5 {[%clk
0:01:01.6]} 24. Qxg6 {[%clk 0:01:28.7]} 24... exd4 {[%clk 0:00:59.9]} 25. Nce4
{[%clk 0:01:30.6]} 25... Qxc2 {[%clk 0:00:54]} 26. Re1 {[%clk 0:01:23.6]} 26...
d5 {[%clk 0:00:48.9]} 27. Nf3 {[%clk 0:00:58.6]} 27... dxe4 {[%clk 0:00:44.6]}
28. Nxd4 {[%clk 0:00:58.8]} 28... Qd2 {[%clk 0:00:38.1]} 29. Nf5 {[%clk
0:00:59]} 29... Qxe1+ {[%clk 0:00:34.8]} 30. Kh2 {[%clk 0:00:59.9]} 30... Ng4+
{[%clk 0:00:12.5]} 31. hxg4 {[%clk 0:00:53.5]} 31... Qc3 {[%clk 0:00:12.6]} 32.
Nxh6+ {[%clk 0:00:32.4]} 32... Kh8 {[%clk 0:00:13]} 33. Nf7+ {[%clk 0:00:32]}
33... Kg8 {[%clk 0:00:13.9]} 34. Nh6+ {[%clk 0:00:08.5]} 34... Kh8 {[%clk
0:00:13.8]} 35. Nf7+ {[%clk 0:00:08.9]} 35... Kg8 {[%clk 0:00:15]} 36. Nh6+
{[%clk 0:00:06.6]} 36... Kh8 {[%clk 0:00:15.9]} 37. Nf7+ {[%clk 0:00:07.9]}
37... Kg8 {[%clk 0:00:16.9]} 38. Nh6+ {[%clk 0:00:07.1]} 1/2-1/2

[Event "*** Titled Tuesday Blitz"]
[Site "Chess.com"]
[Date "2018.12.04"]
[Round "3"]
[White "pedroholly22"]
[Black "abubakrtagelsir"]
[Result "0-1"]
[WhiteElo "2190"]
[BlackElo "2295"]
[TimeControl "180+2"]
[EndTime "13:37:44 PST"]
[Termination "abubakrtagelsir won by resignation"]

1. e4 {[%clk 0:03:01.9]} 1... d6 {[%clk 0:02:58.3]} 2. d4 {[%clk 0:03:02.4]}
2... Nf6 {[%clk 0:02:59]} 3. Nc3 {[%clk 0:03:03.9]} 3... g6 {[%clk 0:02:57.1]}
4. f4 {[%clk 0:03:03.4]} 4... Bg7 {[%clk 0:02:57.8]} 5. Nf3 {[%clk 0:03:05]}
5... c5 {[%clk 0:02:58.2]} 6. d5 {[%clk 0:03:03.9]} 6... O-O {[%clk 0:02:58.4]}
7. Be2 {[%clk 0:02:54.7]} 7... b5 {[%clk 0:02:58.4]} 8. Bxb5 {[%clk 0:02:43]}
8... Nxe4 {[%clk 0:02:56.6]} 9. Bd2 {[%clk 0:02:15.9]} 9... Nxc3 {[%clk
0:02:50.9]} 10. bxc3 {[%clk 0:02:15.5]} 10... Qa5 {[%clk 0:02:47.8]} 11. Bd3
{[%clk 0:02:11.1]} 11... Bxc3 {[%clk 0:02:43.9]} 12. O-O {[%clk 0:02:11]} 12...
c4 {[%clk 0:02:39.6]} 13. Be2 {[%clk 0:02:07.3]} 13... Qc5+ {[%clk 0:02:32]} 14.
Kh1 {[%clk 0:02:07.5]} 14... Bg7 {[%clk 0:02:25.2]} 15. Rb1 {[%clk 0:01:56]}
15... c3 {[%clk 0:02:13.6]} 16. Be1 {[%clk 0:01:50.8]} 16... Nd7 {[%clk
0:02:05.1]} 17. Bf2 {[%clk 0:01:44.2]} 17... Qc7 {[%clk 0:02:04.5]} 18. Rb3
{[%clk 0:01:37]} 18... Nc5 {[%clk 0:01:58.6]} 19. Ra3 {[%clk 0:01:36.7]} 19...
Ne4 {[%clk 0:01:45.9]} 20. Bd4 {[%clk 0:01:36.3]} 20... Bxd4 {[%clk 0:01:29.9]}
21. Qxd4 {[%clk 0:01:38.2]} 21... Qc5 {[%clk 0:01:29.5]} 22. Qxc5 {[%clk
0:01:38.6]} 22... dxc5 {[%clk 0:01:27.5]} 23. Bd3 {[%clk 0:01:39.4]} 23... Nd2
{[%clk 0:01:27.3]} 24. Nxd2 {[%clk 0:01:39.4]} 24... cxd2 {[%clk 0:01:28.1]} 25.
Rd1 {[%clk 0:01:39.8]} 25... Rb8 {[%clk 0:01:25.7]} 26. h3 {[%clk 0:01:35.9]}
26... Rb4 {[%clk 0:01:22.3]} 27. Rxd2 {[%clk 0:01:34.4]} 27... Rxf4 {[%clk
0:01:19.5]} 28. Rxa7 {[%clk 0:01:34.7]} 28... Rd4 {[%clk 0:01:20.3]} 29. Rxe7
{[%clk 0:01:27.9]} 29... c4 {[%clk 0:01:19.7]} 30. Re4 {[%clk 0:01:28.3]} 30...
Rxd5 {[%clk 0:01:14.8]} 31. Rxc4 {[%clk 0:01:27.3]} 31... Ba6 {[%clk 0:01:14.6]}
32. Rc3 {[%clk 0:01:26.1]} 32... Rfd8 {[%clk 0:01:13.1]} 33. a4 {[%clk
0:01:25.6]} 33... Rd4 {[%clk 0:01:07.5]} 34. a5 {[%clk 0:01:25.2]} 34... Ra4
{[%clk 0:01:05.9]} 35. Rc5 {[%clk 0:01:22.5]} 35... Ra3 {[%clk 0:01:02.9]} 36.
Rf2 {[%clk 0:01:14.8]} 36... Bxd3 {[%clk 0:01:01.5]} 37. cxd3 {[%clk 0:01:15.7]}
37... Raxd3 {[%clk 0:00:58.7]} 38. a6 {[%clk 0:01:12.3]} 38... Ra3 {[%clk
0:00:57.7]} 39. Rc7 {[%clk 0:01:12.2]} 39... Rf8 {[%clk 0:00:51.2]} 40. a7
{[%clk 0:01:12.8]} 40... Kg7 {[%clk 0:00:51.4]} 41. Rb2 {[%clk 0:01:06.1]} 41...
Re8 {[%clk 0:00:48.3]} 42. Rbb7 {[%clk 0:00:59.8]} 42... Re1+ {[%clk 0:00:42.3]}
43. Kh2 {[%clk 0:01:00.1]} 43... Rf1 {[%clk 0:00:43.6]} 44. Rb8 {[%clk
0:00:52.9]} 44... Rfa1 {[%clk 0:00:41.9]} 45. Rbb7 {[%clk 0:00:50.4]} 45... Rf1
{[%clk 0:00:40.9]} 46. Rd7 {[%clk 0:00:41.6]} 46... h5 {[%clk 0:00:37.3]} 47.
Rdc7 {[%clk 0:00:40.5]} 47... h4 {[%clk 0:00:38.1]} 48. g4 {[%clk 0:00:31.4]}
48... Ra2+ {[%clk 0:00:35.3]} 0-1

[Event "*** Titled Tuesday Blitz"]
[Site "Chess.com"]
[Date "2018.12.04"]
[Round "3"]
[White "Morshynska"]
[Black "gemarin"]
[Result "0-1"]
[WhiteElo "2057"]
[BlackElo "2027"]
[TimeControl "180+2"]
[EndTime "13:37:44 PST"]
[Termination "gemarin won by checkmate"]

1. d4 {[%clk 0:03:01.9]} 1... Nf6 {[%clk 0:02:58.7]} 2. c4 {[%clk 0:03:02.2]}
2... e6 {[%clk 0:02:59.4]} 3. Nf3 {[%clk 0:03:02.4]} 3... d5 {[%clk 0:02:58]} 4.
g3 {[%clk 0:03:02]} 4... c6 {[%clk 0:02:58.5]} 5. Bg2 {[%clk 0:03:01.2]} 5... h6
{[%clk 0:02:56.8]} 6. O-O {[%clk 0:03:01.1]} 6... Be7 {[%clk 0:02:56.3]} 7. Qc2
{[%clk 0:02:49.3]} 7... O-O {[%clk 0:02:55.7]} 8. Rd1 {[%clk 0:02:47.2]} 8...
Nbd7 {[%clk 0:02:55.2]} 9. Nc3 {[%clk 0:02:46.6]} 9... b6 {[%clk 0:02:53.7]} 10.
Ne5 {[%clk 0:02:40.1]} 10... Bb7 {[%clk 0:02:47.6]} 11. f4 {[%clk 0:02:35.7]}
11... Rc8 {[%clk 0:02:23.9]} 12. Kh1 {[%clk 0:01:53.7]} 12... Qc7 {[%clk
0:02:18]} 13. Be3 {[%clk 0:01:45.1]} 13... dxc4 {[%clk 0:01:08.2]} 14. Nxc4
{[%clk 0:01:35.3]} 14... c5 {[%clk 0:01:07.3]} 15. d5 {[%clk 0:01:29.9]} 15...
exd5 {[%clk 0:01:03.7]} 16. Nxd5 {[%clk 0:01:31.8]} 16... Nxd5 {[%clk
0:01:03.4]} 17. Rxd5 {[%clk 0:01:18.7]} 17... Bxd5 {[%clk 0:01:01.5]} 18. Bxd5
{[%clk 0:01:20.6]} 18... b5 {[%clk 0:00:52.6]} 19. Nd2 {[%clk 0:01:17.1]} 19...
c4 {[%clk 0:00:53]} 20. Bf3 {[%clk 0:01:05.8]} 20... Rfd8 {[%clk 0:00:49.8]} 21.
Kg2 {[%clk 0:01:00.4]} 21... Bf6 {[%clk 0:00:47.3]} 22. Ne4 {[%clk 0:01:00.5]}
22... Be7 {[%clk 0:00:41.5]} 23. a4 {[%clk 0:00:57.9]} 23... b4 {[%clk
0:00:37.8]} 24. h4 {[%clk 0:00:50.8]} 24... Nf6 {[%clk 0:00:34]} 25. Nxf6+
{[%clk 0:00:45.4]} 25... Bxf6 {[%clk 0:00:33.7]} 26. h5 {[%clk 0:00:46.3]} 26...
b3 {[%clk 0:00:30.5]} 27. Qc1 {[%clk 0:00:43.3]} 27... a5 {[%clk 0:00:21.5]} 28.
Rb1 {[%clk 0:00:40.4]} 28... c3 {[%clk 0:00:16.2]} 29. bxc3 {[%clk 0:00:31.9]}
29... Qxc3 {[%clk 0:00:16.7]} 30. Qg1 {[%clk 0:00:26.4]} 30... b2 {[%clk
0:00:14.7]} 31. Bf2 {[%clk 0:00:21.1]} 31... Re8 {[%clk 0:00:06.9]} 32. g4
{[%clk 0:00:21.5]} 32... Rcd8 {[%clk 0:00:06.9]} 33. Qh2 {[%clk 0:00:20.5]}
33... Bd4 {[%clk 0:00:07.2]} 34. Bh4 {[%clk 0:00:17.8]} 34... Qc2 {[%clk
0:00:06.9]} 35. Qh1 {[%clk 0:00:17.7]} 35... Rxe2+ {[%clk 0:00:06.1]} 36. Bxe2
{[%clk 0:00:15.9]} 36... Qxe2+ {[%clk 0:00:06.8]} 37. Kh3 {[%clk 0:00:17.8]}
37... Rc8 {[%clk 0:00:05.7]} 38. Bg3 {[%clk 0:00:16.9]} 38... Rc3 {[%clk
0:00:05.9]} 39. f5 {[%clk 0:00:16.7]} 39... Be5 {[%clk 0:00:06.5]} 40. Rg1
{[%clk 0:00:16.7]} 40... b1=Q {[%clk 0:00:06.2]} 41. Rxb1 {[%clk 0:00:16.3]}
41... Rxg3+ {[%clk 0:00:06.7]} 42. Kh4 {[%clk 0:00:17.6]} 42... Qxg4# {[%clk
0:00:07]} 0-1

[Event "*** Titled Tuesday Blitz"]
[Site "Chess.com"]
[Date "2018.12.04"]
[Round "3"]
[White "LuisFSiles"]
[Black "evgenyermolaev"]
[Result "0-1"]
[WhiteElo "2236"]
[BlackElo "2409"]
[TimeControl "180+2"]
[EndTime "13:37:47 PST"]
[Termination "evgenyermolaev won on time"]

1. e4 {[%clk 0:02:58.7]} 1... c5 {[%clk 0:03:00.5]} 2. Nf3 {[%clk 0:02:58.8]}
2... d6 {[%clk 0:03:02]} 3. d4 {[%clk 0:02:59.5]} 3... cxd4 {[%clk 0:03:03.9]}
4. Nxd4 {[%clk 0:03:00.6]} 4... Nf6 {[%clk 0:03:05.6]} 5. Nc3 {[%clk 0:03:01.8]}
5... a6 {[%clk 0:03:07.2]} 6. h3 {[%clk 0:03:01.6]} 6... e6 {[%clk 0:03:07.9]}
7. g4 {[%clk 0:03:01.1]} 7... h6 {[%clk 0:03:09.4]} 8. Bg2 {[%clk 0:03:01.7]}
8... g5 {[%clk 0:03:10.9]} 9. Be3 {[%clk 0:02:58.9]} 9... Nbd7 {[%clk
0:03:11.1]} 10. Qe2 {[%clk 0:02:58.5]} 10... Ne5 {[%clk 0:03:12.6]} 11. f4
{[%clk 0:02:57.4]} 11... gxf4 {[%clk 0:02:56.7]} 12. Bxf4 {[%clk 0:02:58]} 12...
Nfd7 {[%clk 0:02:57]} 13. O-O-O {[%clk 0:02:51.4]} 13... Qc7 {[%clk 0:02:58.5]}
14. Nf5 {[%clk 0:02:47.5]} 14... exf5 {[%clk 0:02:34.3]} 15. Nd5 {[%clk
0:02:40]} 15... Qa5 {[%clk 0:02:35.4]} 16. exf5 {[%clk 0:02:33.7]} 16... Bg7
{[%clk 0:01:44.5]} 17. f6 {[%clk 0:02:18.3]} 17... Bxf6 {[%clk 0:01:44.9]} 18.
Kb1 {[%clk 0:02:14]} 18... Bg7 {[%clk 0:01:40.5]} 19. g5 {[%clk 0:01:38.8]}
19... h5 {[%clk 0:00:43.8]} 20. Rhe1 {[%clk 0:01:04.6]} 20... Kf8 {[%clk
0:00:20.4]} 21. g6 {[%clk 0:00:34.8]} 21... Qb5 {[%clk 0:00:14.4]} 22. Nc7
{[%clk 0:00:16.9]} 22... Qxe2 {[%clk 0:00:13.8]} 23. Rxe2 {[%clk 0:00:18.8]}
23... Rb8 {[%clk 0:00:11.6]} 24. Rxd6 {[%clk 0:00:19.9]} 24... fxg6 {[%clk
0:00:08.3]} 25. Nd5 {[%clk 0:00:16]} 25... Nc4 {[%clk 0:00:05.8]} 26. Rf2 {[%clk
0:00:11.1]} 26... Nxd6 {[%clk 0:00:05.8]} 27. Bxd6+ {[%clk 0:00:12.1]} 27... Kg8
{[%clk 0:00:07.5]} 28. Bxb8 {[%clk 0:00:10.9]} 28... Nxb8 {[%clk 0:00:09.4]} 29.
Ne7+ {[%clk 0:00:11]} 29... Kh7 {[%clk 0:00:10.9]} 30. Be4 {[%clk 0:00:12.4]}
30... Bf5 {[%clk 0:00:09.7]} 31. Nxf5 {[%clk 0:00:12.7]} 31... gxf5 {[%clk
0:00:11.3]} 32. Bxf5+ {[%clk 0:00:14.3]} 32... Kh6 {[%clk 0:00:12]} 33. Rg2
{[%clk 0:00:13.7]} 33... Rf8 {[%clk 0:00:08.4]} 34. Rg6+ {[%clk 0:00:14.5]}
34... Kh7 {[%clk 0:00:09.9]} 35. Rg5+ {[%clk 0:00:13.6]} 35... Kg8 {[%clk
0:00:05.7]} 36. Be6+ {[%clk 0:00:14.3]} 36... Kh8 {[%clk 0:00:07]} 37. Rxh5+
{[%clk 0:00:15]} 37... Bh6 {[%clk 0:00:08.8]} 38. Rxh6+ {[%clk 0:00:16.2]} 38...
Kg7 {[%clk 0:00:10.4]} 0-1